bitfinex/quotes_SOLUSD_20230904
["timestamp","ask_amount","ask_price","bid_price","bid_amount"]
[1693810952479,20.0,19.738,19.724,4.94461036]
[1693810952678,20.0,19.738,19.725,55.0]
[1693810952976,20.0,19.738,19.726,4.94461036]
[1693810955374,20.0,19.738,19.727,55.0]
[1693810955573,20.0,19.738,19.728,4.94461036]
[1693810957879,20.0,19.738,19.723,4.94461036]
[1693810958091,20.0,19.738,19.724,55.0]
[1693810958292,20.0,19.738,19.725,4.94461036]
[1693810958493,20.0,19.738,19.726,55.0]
[1693810958696,20.0,19.738,19.727,4.94461036]
[1693810968915,20.0,19.738,19.728,55.0]
[1693810969115,20.0,19.738,19.729,4.94461036]
[1693810980314,20.0,19.738,19.728,55.0]
[1693810981326,20.0,19.738,19.729,2.79451455]
[1693810983328,20.0,19.738,19.728,55.0]
[1693810983517,20.0,19.738,19.729,2.85902029]
[1693810992427,20.0,19.738,19.728,55.0]
[1693811076297,25.6,19.74,19.728,55.0]
[1693811076505,59.91368381,19.746,19.729,3.64690935]
[1693811076506,15.01217038,19.746,19.729,3.64690935]
[1693811077205,15.01217038,19.746,19.729,29.24690935]
[1693811077504,15.01217038,19.746,19.731,4.44802002]
[1693811078700,25.6,19.74,19.731,4.44802002]
[1693811078913,25.6,19.74,19.721,4.94461036]
[1693811078914,27.903,19.739,19.721,4.94461036]
[1693811079095,20.0,19.739,19.721,4.94461036]
[1693811079422,106.5709,19.738,19.721,4.94461036]
[1693811079609,20.0,19.737,19.721,4.94461036]
[1693811080408,20.0,19.737,19.723,4.94461036]
[1693811080602,98.6679,19.738,19.725,4.94461036]
[1693811080807,20.0,19.737,19.723,4.94461036]
[1693811081008,20.0,19.737,19.725,4.94461036]
[1693811081313,20.0,19.737,19.726,55.0]
[1693811081512,20.0,19.737,19.724,55.0]
[1693811081713,20.0,19.737,19.725,2.96202663]
[1693811083507,20.0,19.737,19.724,55.0]
[1693811083908,20.0,19.737,19.725,2.60561427]
[1693811096928,98.6679,19.738,19.725,2.60561427]
[1693811097136,98.6679,19.738,19.725,22.60561427]
[1693811097328,98.6679,19.738,19.726,55.0]
[1693811097534,98.6679,19.738,19.727,4.94461036]
[1693811097838,98.6679,19.738,19.728,55.0]
[1693811098029,98.6679,19.738,19.729,4.94461036]
[1693811098226,98.6679,19.738,19.73,55.0]
[1693811098421,98.6679,19.738,19.731,4.94461036]
[1693811098634,25.6,19.74,19.731,4.94461036]
[1693811101028,25.6,19.74,19.732,55.0]
[1693811101225,25.6,19.74,19.733,4.94461036]
[1693811101420,25.6,19.74,19.732,55.0]
[1693811102440,90.7561,19.744,19.732,55.0]
[1693811102620,90.7561,19.744,19.733,4.94461036]
[1693811102822,90.7561,19.744,19.734,55.0]
[1693811104827,15.01217038,19.746,19.734,55.0]
[1693811105028,20.0,19.745,19.735,4.94461036]
[1693811105343,20.0,19.745,19.734,55.0]
[1693811115855,66.7758743,19.75,19.735,24.94461036]
[1693811116039,66.7758743,19.75,19.736,55.0]
[1693811116040,25.6,19.75,19.736,55.0]
[1693811116238,99.8401,19.752,19.737,4.94461036]
[1693811116446,99.8401,19.752,19.738,55.0]
[1693811116642,99.8401,19.752,19.739,4.94461036]
[1693811116833,99.8401,19.752,19.74,55.0]
[1693811117053,99.8401,19.752,19.741,4.94461036]
[1693811117251,99.8401,19.752,19.742,55.0]
[1693811117454,99.8401,19.752,19.743,4.94461036]
[1693811122955,99.8401,19.752,19.742,55.0]
[1693811123552,15.12468322,19.753,19.742,55.0]
[1693811123753,15.12468322,19.753,19.743,4.94461036]
[1693811124945,90.932,19.759,19.744,55.0]
[1693811125150,25.6,19.75,19.745,4.94461036]
[1693811125355,90.932,19.759,19.744,55.0]
[1693811125539,25.6,19.75,19.744,55.0]
[1693811126040,90.932,19.759,19.744,55.0]
[1693811126258,20.0,19.758,19.744,55.0]
[1693811126451,26.44063384,19.757,19.744,55.0]
[1693811126651,20.0,19.756,19.744,55.0]
[1693811132949,20.0,19.758,19.744,55.0]
[1693811136655,20.0,19.758,19.745,4.94461036]
[1693811136857,20.0,19.758,19.746,55.0]
[1693811140063,105.92288145,19.759,19.746,55.0]
[1693811140263,105.92288145,19.759,19.747,4.94461036]
[1693811140456,90.932,19.759,19.748,55.0]
[1693811140655,90.932,19.759,19.749,4.94461036]
[1693811140856,90.932,19.759,19.75,55.0]
[1693811142057,90.932,19.759,19.751,4.94461036]
[1693811142456,90.932,19.759,19.75,55.0]
[1693811145374,25.6,19.76,19.75,55.0]
[1693811145581,25.6,19.76,19.751,4.94461036]
[1693811145784,25.6,19.76,19.752,55.0]
[1693811149979,15.22784809,19.765,19.752,55.0]
[1693811152979,93.638,19.766,19.753,4.94461036]
[1693811153169,93.638,19.766,19.755,4.94461036]
[1693811153378,20.0,19.765,19.756,55.0]
[1693811155977,20.0,19.769,19.756,55.0]
[1693811186306,20.0,19.769,19.757,2.48719866]
[1693811187108,25.6,19.77,19.757,2.48719866]
[1693811187419,15.34177214,19.772,19.757,2.48719866]
[1693811187592,92.6644,19.773,19.757,2.48719866]
[1693811191909,108.09253764,19.773,19.757,2.48719866]
[1693811194218,92.6644,19.773,19.757,2.48719866]
[1693811194411,92.6644,19.773,19.76,25.6]
[1693811194613,92.6644,19.773,19.761,59.94461036]
[1693811195907,40.10121456,19.779,19.761,59.94461036]
[1693811196103,20.0,19.778,19.761,4.94461036]
[1693811196309,55.0,19.777,19.759,4.94461036]
[1693811196504,25.6,19.77,19.759,4.94461036]
[1693811197317,95.092,19.775,19.759,4.94461036]
[1693811197510,95.092,19.775,19.761,4.94461036]
[1693811208243,135.09199999,19.775,19.761,4.94461036]
[1693811212431,135.09199999,19.775,19.758,11.70793]
[1693811212432,7.891,19.768,19.758,11.70793]
[1693811212823,20.0,19.767,19.758,11.70793]
[1693811213520,20.0,19.768,19.758,11.70793]
[1693811213835,27.891,19.769,19.758,11.70793]
[1693811214324,90.9735,19.768,19.758,11.70793]
[1693811214521,20.0,19.767,19.758,11.70793]
[1693811214833,20.0,19.767,19.749,4.94461036]
[1693811215025,20.0,19.767,19.75,55.0]
[1693811215334,20.0,19.767,19.751,4.94461036]
[1693811215631,20.0,19.767,19.753,4.94461036]
[1693811215823,20.0,19.767,19.751,4.94461036]
[1693811216025,20.0,19.767,19.753,4.94461036]
[1693811216217,20.0,19.767,19.751,4.94461036]
[1693811216422,20.0,19.767,19.752,55.0]
[1693811216623,20.0,19.767,19.753,4.94461036]
[1693811216817,20.0,19.767,19.754,55.0]
[1693811217122,20.0,19.767,19.755,4.94461036]
[1693811221437,20.0,19.767,19.75,4.94461036]
[1693811222440,20.0,19.767,19.751,55.0]
[1693811222736,20.0,19.767,19.752,4.94461036]
[1693811223339,20.0,19.767,19.753,55.0]
[1693811223540,20.0,19.767,19.754,4.94461036]
[1693811224923,35.2141772,19.767,19.754,4.94461036]
[1693811226844,20.0,19.767,19.755,55.0]
[1693811227034,20.0,19.767,19.756,4.94461036]
[1693811227230,20.0,19.767,19.757,55.0]
[1693811227436,20.0,19.767,19.758,4.94461036]
[1693811227638,20.0,19.767,19.759,55.0]
[1693811228143,20.0,19.767,19.76,4.94461036]
[1693811229343,90.9735,19.768,19.76,4.94461036]
[1693811229547,20.0,19.767,19.76,4.94461036]
[1693811229847,20.0,19.767,19.751,4.94461036]
[1693811230040,20.0,19.767,19.753,4.94461036]
[1693811230248,20.0,19.767,19.755,4.94461036]
[1693811230449,20.0,19.767,19.756,55.0]
[1693811230650,20.0,19.767,19.757,4.94461036]
[1693811244357,20.0,19.767,19.756,55.0]
[1693811244358,20.0,19.767,19.759,4.94461036]
[1693811244955,90.9735,19.768,19.759,4.94461036]
[1693811245462,20.0,19.767,19.758,55.0]
[1693811246660,20.0,19.767,19.759,4.94461036]
[1693811247264,20.0,19.767,19.758,55.0]
[1693811247874,20.0,19.767,19.759,4.94461036]
[1693811248369,20.0,19.767,19.758,55.0]
[1693811248754,20.0,19.767,19.759,4.94461036]
[1693811249559,20.0,19.767,19.76,55.0]
[1693811268281,401.4,19.784,19.76,55.0]
[1693811268573,401.4,19.784,19.761,4.94461036]
[1693811268574,95.2764,19.777,19.761,4.94461036]
[1693811268775,95.2764,19.777,19.763,4.94461036]
[1693811268976,95.2764,19.777,19.764,55.0]
[1693811269171,95.2764,19.777,19.765,4.94461036]
[1693811269372,95.2764,19.777,19.767,4.94461036]
[1693811269561,25.6,19.78,19.767,4.94461036]
[1693811270163,25.6,19.78,19.758,4.94461036]
[1693811270378,25.6,19.78,19.759,55.0]
[1693811270579,25.6,19.78,19.76,4.94461036]
[1693811270790,25.6,19.78,19.761,55.0]
[1693811271076,25.6,19.78,19.762,4.94461036]
[1693811271376,25.6,19.78,19.764,4.94461036]
[1693811271560,25.6,19.78,19.766,4.94461036]
[1693811271757,25.6,19.78,19.764,4.94461036]
[1693811271981,25.6,19.78,19.765,55.0]
[1693811272169,25.6,19.78,19.766,4.94461036]
[1693811272878,20.0,19.779,19.766,4.94461036]
[1693811286379,20.0,19.779,19.767,55.0]
[1693811288685,61.19372786,19.779,19.767,55.0]
[1693811294390,20.0,19.779,19.767,55.0]
[1693811294693,25.6,19.78,19.768,2.74191633]
[1693811321913,92.6927,19.781,19.768,2.74191633]
[1693811331412,92.6927,19.781,19.77,25.6]
[1693811331719,92.6927,19.781,19.771,59.94461036]
[1693811332720,15.26251895,19.785,19.771,59.94461036]
[1693811335428,91.2589,19.789,19.771,59.94461036]
[1693811335629,20.0,19.788,19.771,59.94461036]
[1693811337923,20.0,19.788,19.771,119.88922136]
[1693811341116,20.0,19.788,19.771,131.58945136]
[1693811356451,20.0,19.788,19.771,76.58945136]
[1693811357832,20.0,19.788,19.772,55.0]
[1693811358049,20.0,19.788,19.773,4.94461036]
[1693811358251,20.0,19.788,19.774,55.0]
[1693811358433,20.0,19.788,19.775,4.94461036]
[1693811358738,20.0,19.788,19.777,4.94461036]
[1693811358938,20.0,19.788,19.775,4.94461036]
[1693811359147,20.0,19.788,19.777,4.94461036]
[1693811359341,20.0,19.788,19.775,4.94461036]
[1693811359543,20.0,19.788,19.776,55.0]
[1693811359731,20.0,19.788,19.777,4.94461036]
[1693811363947,20.0,19.788,19.776,55.0]
[1693811369063,20.0,19.788,19.775,55.0]
[1693811369355,20.0,19.788,19.776,2.89881427]
[1693811370655,91.2589,19.789,19.776,2.89881427]
[1693811370858,91.1879,19.789,19.776,2.89881427]
[1693811372156,91.1879,19.789,19.776,57.89881427]
[1693811372352,91.1879,19.789,19.777,55.0]
[1693811372557,91.1879,19.789,19.778,4.94461036]
[1693811372744,91.1879,19.789,19.779,55.0]
[1693811380665,25.6,19.79,19.779,55.0]
[1693811387258,15.33670373,19.794,19.779,55.0]
[1693811389765,15.33670373,19.794,19.78,25.6]
[1693811389958,99.0678,19.795,19.781,55.0]
[1693811393673,25.6,19.8,19.781,55.0]
[1693811393969,162.3164126,19.81,19.782,20.0]
[1693811393970,90.8578,19.803,19.782,20.0]
[1693811394160,90.8578,19.803,19.783,55.0]
[1693811394361,90.8578,19.803,19.784,20.0]
[1693811394663,90.8578,19.803,19.785,55.0]
[1693811394868,90.8578,19.803,19.783,55.0]
[1693811395171,90.8578,19.803,19.784,20.0]
[1693811395357,90.8578,19.803,19.785,55.0]
[1693811396762,7.876,19.807,19.785,55.0]
[1693811396971,25.6,19.8,19.785,55.0]
[1693811408776,25.6,19.8,19.785,94.8948964]
[1693811413793,14.78473975,19.802,19.785,94.8948964]
[1693811437801,99.9137,19.805,19.785,94.8948964]
[1693811438099,99.9137,19.805,19.785,106.5868464]
[1693811438598,115.38339696,19.805,19.785,106.5868464]
[1693811442308,115.38339696,19.805,19.786,11.69136]
[1693811442604,115.38339696,19.805,19.787,55.0]
[1693811463523,115.38339696,19.805,19.786,11.69136]
[1693811463524,25.6,19.8,19.786,11.69136]
[1693811464929,25.6,19.8,19.787,55.0]
[1693811470727,25.6,19.8,19.786,11.69136]
[1693811470932,25.6,19.8,19.785,39.8948964]
[1693811471120,25.6,19.8,19.784,20.0]
[1693811472531,25.6,19.8,19.785,55.0]
[1693811473635,25.6,19.8,19.785,116.71753411]
[1693811485050,25.6,19.8,19.786,61.71753411]
[1693811485344,25.6,19.8,19.787,55.0]
[1693811494838,99.9137,19.805,19.788,61.71753411]
[1693811495138,99.9137,19.805,19.789,55.0]
[1693811500036,99.9137,19.805,19.79,25.6]
[1693811500236,99.9137,19.805,19.791,55.0]
[1693811500849,40.59696815,19.81,19.791,66.6884]
[1693811501056,20.0,19.809,19.791,66.6884]
[1693811501237,20.0,19.809,19.791,128.405934]
[1693811504354,25.6,19.82,19.792,228.82978683]
[1693811504544,25.6,19.82,19.793,55.0]
[1693811504848,25.6,19.82,19.794,31.68663]
[1693811505041,99.0957,19.819,19.795,55.0]
[1693811505650,75.0,19.818,19.795,55.0]
[1693811506054,99.0957,19.817,19.795,55.0]
[1693811506457,20.0,19.816,19.795,55.0]
[1693811506648,75.0,19.818,19.795,121.96890196]
[1693811507653,93.3435,19.817,19.796,66.96890196]
[1693811507961,20.0,19.816,19.797,55.0]
[1693811509151,20.0,19.816,19.797,121.968902]
[1693811520570,59.55981826,19.816,19.797,121.968902]
[1693811523355,20.0,19.816,19.8,25.6]
[1693811523573,20.0,19.816,19.801,55.0]
[1693811527658,40.58939393,19.82,19.801,55.0]
[1693811527858,20.0,19.819,19.801,55.0]
[1693811542989,55.0,19.818,19.797,66.968902]
[1693811543188,25.6,19.81,19.797,66.968902]
[1693811544673,25.6,19.81,19.795,41.25189297]
[1693811544878,25.6,19.81,19.793,14.8090909]
[1693811545289,25.6,19.81,19.794,147.2018563]
[1693811545993,25.6,19.81,19.795,55.0]
[1693811546288,14.98030302,19.815,19.795,55.0]
[1693811546478,94.1451,19.817,19.795,55.0]
[1693811546676,20.0,19.816,19.795,55.0]
[1693811547899,20.0,19.816,19.795,66.68604]
[1693811549788,20.0,19.816,19.796,11.68545]
[1693811549991,20.0,19.816,19.797,55.0]
[1693811551580,20.0,19.816,19.797,66.68486]
[1693811565099,20.0,19.816,19.797,107.06465797]
[1693811566108,25.6,19.81,19.797,107.06465797]
[1693811568602,20.0,19.816,19.797,107.06465797]
[1693811575919,20.0,19.816,19.798,11.68427]
[1693811576114,20.0,19.816,19.799,55.0]
[1693811576703,94.1451,19.817,19.8,25.6]
[1693811576904,20.0,19.816,19.801,55.0]
[1693811577116,25.6,19.82,19.801,55.0]
[1693811577324,25.6,19.82,19.802,20.0]
[1693811577520,25.6,19.82,19.803,55.0]
[1693811577719,25.6,19.82,19.804,20.0]
[1693811577922,25.6,19.82,19.805,55.0]
[1693811585112,25.6,19.82,19.806,62.8522353]
[1693811585317,25.6,19.82,19.807,55.0]
[1693811593129,97.4248,19.825,19.807,55.0]
[1693811596430,97.4248,19.825,19.807,66.67896]
[1693811599022,97.4248,19.825,19.807,107.18350086]
[1693811606937,25.6,19.82,19.807,107.18350086]
[1693811609742,97.4248,19.825,19.807,107.18350086]
[1693811614539,25.6,19.82,19.807,107.18350086]
[1693811617641,97.4248,19.825,19.807,107.18350086]
[1693811618648,25.6,19.82,19.807,107.18350086]
[1693811626145,97.4248,19.825,19.807,107.18350086]
[1693811638655,25.6,19.82,19.807,66.67896]
[1693811639265,25.6,19.82,19.807,55.0]
[1693811644955,25.6,19.82,19.8,25.6]
[1693811645156,97.07654627,19.819,19.79,25.6]
[1693811645356,152.39185234,19.819,19.794,11.68663]
[1693811645961,144.52085234,19.819,19.794,11.68663]
[1693811646466,144.52085234,19.819,19.795,20.0]
[1693811646775,144.52085234,19.819,19.795,31.68604]
[1693811646969,97.8575,19.818,19.796,55.0]
[1693811647174,20.0,19.817,19.796,55.0]
[1693811647763,20.0,19.817,19.796,66.68545]
[1693811648970,7.873,19.815,19.796,66.68545]
[1693811649177,20.0,19.817,19.796,66.68545]
[1693811649967,25.6,19.81,19.796,66.68545]
[1693811651969,25.6,19.81,19.797,11.68486]
[1693811652274,20.0,19.817,19.798,55.0]
[1693811653075,20.0,19.817,19.799,11.68368]
[1693811653274,20.0,19.817,19.8,55.0]
[1693811654774,20.0,19.817,19.8,110.0]
[1693811655875,20.0,19.817,19.8,135.6]
[1693811656183,20.0,19.817,19.801,11.6825]
[1693811656478,20.0,19.817,19.802,55.0]
[1693811658580,25.6,19.82,19.802,55.0]
[1693811658776,25.6,19.82,19.803,31.68132]
[1693811658981,25.6,19.82,19.804,55.0]
[1693811659173,25.6,19.82,19.805,31.68014]
[1693811659373,25.6,19.82,19.806,55.0]
[1693811660875,25.6,19.82,19.806,110.0]
[1693811670985,25.6,19.82,19.806,121.67955]
[1693811671183,97.5419,19.826,19.806,121.67955]
[1693811671686,15.50252269,19.827,19.806,121.67955]
[1693811671882,20.0,19.826,19.806,121.67955]
[1693811676192,25.6,19.82,19.806,121.67955]
[1693811680099,20.0,19.826,19.807,11.67896]
[1693811680291,20.0,19.826,19.808,55.0]
[1693811680493,20.0,19.826,19.808,66.67837]
[1693811684698,20.0,19.826,19.81,25.6]
[1693811684899,20.0,19.826,19.811,55.0]
[1693811688191,21.98947536,19.829,19.811,55.0]
[1693811688504,20.0,19.828,19.812,11.67601]
[1693811688796,25.6,19.83,19.813,55.0]
[1693811689002,20.0,19.829,19.813,55.0]
[1693811705505,25.6,19.83,19.813,55.0]
[1693811705710,25.6,19.84,19.814,20.0]
[1693811705911,20.0,19.838,19.82,25.6]
[1693811706111,20.0,19.838,19.821,55.0]
[1693811706618,25.6,19.84,19.821,55.0]
[1693811706816,25.6,19.84,19.822,20.0]
[1693811707031,25.6,19.84,19.823,55.0]
[1693811707215,25.6,19.84,19.824,20.0]
[1693811707520,93.304,19.846,19.83,25.6]
[1693811707719,93.304,19.846,19.831,55.0]
[1693811708021,93.304,19.846,19.831,66.66483]
[1693811708812,25.6,19.85,19.831,66.66483]
[1693811709013,93.304,19.849,19.831,66.66483]
[1693811709221,20.0,19.848,19.831,66.66483]
[1693811728650,55.0,19.847,19.831,66.66483]
[1693811728833,20.0,19.846,19.831,55.0]
[1693811729033,20.0,19.846,19.83,55.0]
[1693811729334,25.6,19.84,19.829,41.34745334]
[1693811729642,25.6,19.84,19.821,40.90034928]
[1693811729943,25.6,19.84,19.822,20.0]
[1693811730123,25.6,19.84,19.822,45.42355817]
[1693811730526,25.6,19.84,19.821,111.06146852]
[1693811730725,25.6,19.84,19.821,40.58467741]
[1693811730726,20.0,19.839,19.821,40.58467741]
[1693811730919,20.0,19.839,19.82,25.6]
[1693811731534,25.6,19.84,19.82,25.6]
[1693811731838,25.6,19.84,19.821,100.42355817]
[1693811732543,25.6,19.84,19.822,11.67012]
[1693811732733,93.8123256,19.85,19.823,100.42355817]
[1693811732734,65.42661289,19.85,19.823,100.42355817]
[1693811732936,20.0,19.848,19.823,100.42355817]
[1693811733324,20.0,19.848,19.824,11.66895]
[1693811733526,20.0,19.848,19.825,100.42355817]
[1693811733741,20.0,19.848,19.826,11.66777]
[1693811733934,20.0,19.848,19.827,55.0]
[1693811734129,20.0,19.848,19.83,25.6]
[1693811734331,20.0,19.848,19.831,55.0]
[1693811740445,20.0,19.848,19.831,66.66483]
[1693811743449,20.0,19.849,19.831,66.66483]
[1693811743745,20.0,19.849,19.832,11.66424]
[1693811743949,20.0,19.849,19.833,55.0]
[1693811744143,20.0,19.849,19.832,11.66424]
[1693811745453,25.6,19.85,19.833,20.0]
[1693811746041,25.6,19.85,19.834,66.66306]
[1693811746236,25.6,19.85,19.835,20.0]
[1693811746437,25.6,19.85,19.836,66.66189]
[1693811748452,25.6,19.85,19.836,11.66189]
[1693811748648,25.6,19.85,19.83,121.93535047]
[1693811748837,25.6,19.85,19.831,31.66483]
[1693811749539,25.6,19.85,19.832,11.66424]
[1693811749745,25.6,19.85,19.833,20.0]
[1693811749946,25.6,19.85,19.834,55.0]
[1693811750348,25.6,19.85,19.835,20.0]
[1693811750551,25.6,19.85,19.836,55.0]
[1693811761759,25.6,19.85,19.832,11.66424]
[1693811761960,25.6,19.85,19.833,55.0]
[1693811761961,20.0,19.849,19.833,55.0]
[1693811762666,20.0,19.849,19.832,11.66424]
[1693811762857,55.0,19.848,19.832,11.66424]
[1693811763059,20.0,19.847,19.824,14.97276853]
[1693811763260,20.0,19.847,19.829,25.423558]
[1693811763454,115.8445,19.847,19.829,25.423558]
[1693811764868,115.8445,19.847,19.83,55.0]
[1693811768065,115.8445,19.847,19.83,80.6]
[1693811768772,115.8445,19.847,19.831,11.66483]
[1693811768954,115.8445,19.847,19.832,55.0]
[1693811769157,115.8445,19.847,19.832,66.66424]
[1693811770362,115.8445,19.847,19.832,11.66424]
[1693811770573,25.6,19.84,19.825,20.0]
[1693811770770,25.6,19.84,19.825,71.31755354]
[1693811771269,115.8445,19.847,19.826,11.66777]
[1693811771776,115.8445,19.847,19.827,55.0]
[1693811771973,115.8445,19.847,19.827,66.66718]
[1693811774770,25.6,19.84,19.827,66.66718]
[1693811776274,25.6,19.84,19.827,11.66718]
[1693811776472,25.6,19.84,19.825,20.0]
[1693811776778,25.6,19.84,19.823,40.00403225]
[1693811777078,25.6,19.84,19.824,20.0]
[1693811777258,25.6,19.84,19.823,40.004032]
[1693811777578,25.6,19.84,19.824,20.0]
[1693811777880,25.6,19.84,19.825,55.0]
[1693811794385,25.6,19.84,19.824,20.0]
[1693811795785,25.6,19.84,19.825,55.0]
[1693811796375,95.8445,19.847,19.825,80.42355817]
[1693811796688,20.0,19.846,19.825,80.42355817]
[1693811797083,20.0,19.846,19.826,11.66777]
[1693811797279,20.0,19.849,19.827,55.0]
[1693811797480,20.0,19.849,19.827,66.66718]
[1693811797680,25.6,19.84,19.827,66.66718]
[1693811801290,94.882,19.848,19.827,66.66718]
[1693811801583,20.0,19.847,19.827,66.66718]
[1693811802586,20.0,19.847,19.827,64.66718]
[1693811809892,20.0,19.847,19.827,106.01866763]
[1693811814786,61.16994452,19.847,19.827,106.01866763]
[1693811826097,25.6,19.84,19.827,106.01866763]
[1693811827893,25.6,19.84,19.827,64.66718]
[1693811836200,20.0,19.847,19.827,64.66718]
[1693811838119,25.6,19.85,19.83,25.6]
[1693811838326,20.0,19.849,19.831,66.66483]
[1693811838818,20.0,19.849,19.832,11.66424]
[1693811839115,20.0,19.849,19.833,55.0]
[1693811840106,20.0,19.849,19.832,11.66424]
[1693811841419,20.0,19.849,19.833,55.0]
[1693811846908,20.0,19.849,19.833,66.66365]
[1693811853228,25.6,19.85,19.834,31.66306]
[1693811853519,25.6,19.85,19.835,66.66248]
[1693811854425,25.6,19.85,19.835,133.32496]
[1693811864627,25.6,19.85,19.835,172.71205676]
[1693811868027,25.6,19.85,19.836,11.66189]
[1693811868334,25.6,19.85,19.837,55.0]
[1693811873929,25.6,19.86,19.84,25.6]
[1693811874231,25.6,19.86,19.841,75.0]
[1693811874834,25.6,19.86,19.842,11.65836]
[1693811875045,25.6,19.86,19.843,75.0]
[1693811875336,41.44923145,19.866,19.843,75.0]
[1693811875533,91.1897,19.868,19.844,11.65719]
[1693811875534,20.0,19.865,19.844,11.65719]
[1693811875723,20.0,19.865,19.845,55.0]
[1693811876040,20.0,19.865,19.846,11.65601]
[1693811876226,20.0,19.867,19.847,55.0]
[1693811876929,20.0,19.867,19.848,11.65484]
[1693811877227,20.0,19.867,19.849,55.0]
[1693811879641,20.0,19.867,19.848,11.65484]
[1693811879934,55.0,19.866,19.848,11.65484]
[1693811880246,20.0,19.865,19.848,11.65484]
[1693811880537,20.0,19.867,19.848,11.65484]
[1693811880941,20.0,19.867,19.849,55.0]
[1693811881832,25.6,19.86,19.849,55.0]
[1693811888326,25.6,19.86,19.848,11.65484]
[1693811888536,25.6,19.86,19.843,95.0]
[1693811889744,25.6,19.86,19.843,134.90730478]
[1693811890045,25.6,19.86,19.844,55.0]
[1693811890246,25.6,19.86,19.845,20.0]
[1693811890447,25.6,19.86,19.846,55.0]
[1693811891848,25.6,19.86,19.846,66.65601]
[1693811897944,25.6,19.86,19.846,11.65601]
[1693811899957,25.6,19.86,19.847,55.0]
[1693811901153,25.6,19.86,19.847,66.65542]
[1693811907060,15.15415616,19.866,19.847,66.65542]
[1693811907358,20.0,19.865,19.847,66.65542]
[1693811911150,20.0,19.865,19.848,11.65484]
[1693811911464,20.0,19.867,19.849,55.0]
[1693811913350,20.0,19.867,19.849,66.65425]
[1693811914260,20.0,19.867,19.85,37.25366]
[1693811914473,20.0,19.867,19.851,55.0]
[1693811921364,20.0,19.867,19.85,11.65366]
[1693811922874,20.0,19.867,19.851,55.0]
[1693811929972,27.852,19.867,19.851,55.0]
[1693811930177,25.6,19.86,19.851,55.0]
[1693811930479,25.6,19.86,19.845,20.0]
[1693811930682,25.6,19.86,19.846,55.0]
[1693811930977,25.6,19.86,19.845,110.0]
[1693811931674,61.44923145,19.867,19.846,11.65601]
[1693811931880,61.44923145,19.867,19.847,55.0]
[1693811932067,61.44923145,19.867,19.847,66.65542]
[1693811934179,25.6,19.86,19.847,11.65542]
[1693811935373,25.6,19.86,19.848,55.0]
[1693811938883,61.44923145,19.867,19.848,55.0]
[1693811939192,20.0,19.867,19.848,55.0]
[1693811939372,20.0,19.867,19.849,11.65425]